bitfinex/quotes_BTCUSD_20220115
["timestamp","ask_amount","ask_price","bid_price","bid_amount"]
[1642264234619,0.00972836,43295.0,43294.0,0.62826523]
[1642264234821,0.00972836,43295.0,43294.0,1.22061734]
[1642264235438,0.00972836,43295.0,43294.0,0.62826523]
[1642264236842,0.00972836,43295.0,43294.0,1.20753972]
[1642264237042,0.00972836,43295.0,43294.0,1.14981772]
[1642264238043,0.00972836,43295.0,43294.0,1.04981772]
[1642264238247,0.00972836,43295.0,43294.0,0.45752173]
[1642264239493,0.00972836,43295.0,43294.0,1.05001269]
[1642264239690,0.00972836,43295.0,43294.0,1.00521269]
[1642264240090,0.00972836,43295.0,43294.0,0.41272173]
[1642264241090,0.00972836,43295.0,43294.0,0.40772173]
[1642264241690,0.51572836,43296.0,43294.0,0.40772173]
[1642264242643,0.51572836,43296.0,43295.0,0.59255554]
[1642264242844,0.51572836,43296.0,43295.0,0.63885554]
[1642264243044,0.51590026,43296.0,43295.0,0.63885554]
[1642264244648,0.51590026,43296.0,43295.0,0.59415554]
[1642264249800,0.51590026,43296.0,43295.0,0.54925554]
[1642264250642,0.51590026,43296.0,43295.0,0.0463]
[1642264251744,0.51590026,43296.0,43295.0,0.1463]
[1642264251943,0.51590026,43296.0,43295.0,0.2463]
[1642264252343,0.51590026,43296.0,43295.0,0.3463]
[1642264254195,0.51590026,43296.0,43295.0,0.404022]
[1642264254794,0.51590026,43296.0,43295.0,0.359022]
[1642264254993,0.51590026,43296.0,43295.0,1.79370523]
[1642264256597,0.51590026,43296.0,43295.0,1.89370523]
[1642264256995,0.51524074,43296.0,43295.0,1.89370523]
[1642264257195,0.51524074,43296.0,43295.0,1.20263836]
[1642264257444,0.51524074,43296.0,43295.0,1.4490073]
[1642264259747,0.51524074,43296.0,43295.0,1.4044073]
[1642264262094,0.51524074,43296.0,43295.0,1.4507073]
[1642264262496,0.51524074,43296.0,43295.0,2.6707073]
[1642264263194,0.51524074,43296.0,43295.0,2.42433836]
[1642264263394,0.51524074,43296.0,43295.0,1.20433836]
[1642264263598,0.51524074,43296.0,43295.0,1.04661636]
[1642264263797,0.51524074,43296.0,43295.0,1.00031636]
[1642264264394,0.51524074,43296.0,43295.0,0.2567]
[1642264264597,0.51524074,43296.0,43295.0,0.84925512]
[1642264264797,0.51524074,43296.0,43295.0,0.80395512]
[1642264269900,0.51524074,43296.0,43295.0,0.75925512]
[1642264274951,0.51524074,43296.0,43295.0,0.71405512]
[1642264277196,0.51524074,43296.0,43295.0,0.1215]
[1642264277401,0.0001719,43296.0,43295.0,0.1215]
[1642264278696,0.0001719,43296.0,43295.0,0.6215]
[1642264278897,0.0001719,43296.0,43295.0,0.179222]
[1642264279959,0.0001719,43296.0,43295.0,0.134422]
[1642264280155,0.0001719,43296.0,43295.0,1.41069789]
[1642264280757,0.0001719,43296.0,43295.0,0.71938358]
[1642264280955,0.0001719,43296.0,43295.0,0.66166158]
[1642264282159,0.0001719,43296.0,43295.0,0.0767]
[1642264284297,0.0001719,43296.0,43295.0,1.35670879]
[1642264284904,0.0001719,43296.0,43295.0,1.31210879]
[1642264285106,0.0001719,43296.0,43295.0,0.62075179]
[1642264285299,0.0001719,43296.0,43295.0,0.80865801]
[1642264285507,0.0001719,43296.0,43295.0,0.62075179]
[1642264286099,0.0001719,43296.0,43295.0,0.80685948]
[1642264286499,0.0001719,43296.0,43295.0,0.62075179]
[1642264286701,0.0001719,43296.0,43295.0,0.80755864]
[1642264287663,0.0001719,43296.0,43295.0,0.62075179]
[1642264288461,0.0001719,43296.0,43295.0,0.66705179]
[1642264288660,0.0001719,43296.0,43295.0,0.76705179]
[1642264289061,0.0001719,43296.0,43295.0,1.45839206]
[1642264289761,0.0001719,43296.0,43295.0,0.1784]
[1642264289959,0.0001719,43296.0,43295.0,0.1338]
[1642264290165,0.0001719,43296.0,43295.0,0.0338]
[1642264290561,0.0001719,43296.0,43295.0,0.62245179]
[1642264290961,0.0001719,43296.0,43295.0,0.72245179]
[1642264291597,0.0001719,43296.0,43295.0,0.92134367]
[1642264291799,0.00078203,43298.0,43295.0,0.92134367]
[1642264291800,0.00078203,43298.0,43296.0,2.5]
[1642264291996,0.00078203,43298.0,43297.0,3.7953]
[1642264292398,1.85477977,43313.0,43297.0,3.8953]
[1642264292597,1.85477977,43313.0,43302.0,0.057713]
[1642264292598,0.00312772,43306.0,43302.0,0.057713]
[1642264292802,0.00012033,43303.0,43302.0,0.37305997]
[1642264292997,0.00012033,43303.0,43302.0,0.41935997]
[1642264293199,0.00012033,43303.0,43302.0,0.51935997]
[1642264293401,0.00012033,43303.0,43302.0,2.43060289]
[1642264293602,0.00012033,43303.0,43302.0,2.48831489]
[1642264294203,0.0007821,43305.0,43302.0,2.48831489]
[1642264294204,0.0007821,43305.0,43304.0,1.22]
[1642264294404,0.0007821,43305.0,43304.0,1.2663]
[1642264294601,0.0007821,43305.0,43304.0,1.92518053]
[1642264294802,0.27911976,43315.0,43304.0,1.92518053]
[1642264295054,0.27911976,43315.0,43307.0,0.01300532]
[1642264295055,0.00312765,43313.0,43307.0,0.01300532]
[1642264295251,0.00012033,43310.0,43308.0,1.2663]
[1642264295457,0.00015471,43312.0,43308.0,1.2663]
[1642264295650,0.00312765,43313.0,43308.0,1.2663]
[1642264295651,0.00010314,43309.0,43308.0,1.3663]
[1642264295851,0.00312765,43313.0,43308.0,1.3663]
[1642264295852,0.00013752,43311.0,43308.0,1.3663]
[1642264296051,0.9899,43318.0,43310.0,1.22]
[1642264296251,0.99302784,43318.0,43312.0,0.0577]
[1642264296452,0.00312784,43318.0,43313.0,0.0463]
[1642264296853,0.00312784,43318.0,43315.0,0.34352775]
[1642264297053,0.00312784,43318.0,43316.0,0.0463]
[1642264297252,1.73917977,43325.0,43316.0,0.0463]
[1642264297453,0.00078215,43319.0,43316.0,0.0463]
[1642264297653,0.26630645,43319.0,43316.0,0.0463]
[1642264298451,0.2655243,43319.0,43316.0,0.0463]
[1642264299907,0.2655243,43319.0,43316.0,0.0016]
[1642264301310,0.00078206,43320.0,43316.0,0.0016]
[1642264301609,0.00027504,43319.0,43316.0,0.0016]
[1642264302009,0.3102,43325.0,43316.0,0.0016]
[1642264302010,0.00025785,43318.0,43316.0,0.0016]
[1642264302309,0.00024066,43317.0,43316.0,0.0016]
[1642264304046,0.31204506,43320.0,43316.0,0.0016]
[1642264304648,0.3102,43325.0,43317.0,0.057697]
[1642264304848,0.00123057,43327.0,43317.0,0.103997]
[1642264305048,0.00123057,43327.0,43317.0,0.059197]
[1642264305049,0.00012033,43324.0,43317.0,0.059197]
[1642264305450,0.00010314,43323.0,43317.0,0.059197]
[1642264305650,0.27278716,43322.0,43317.0,0.059197]
[1642264305855,0.27336736,43322.0,43317.0,0.059197]
[1642264306051,6.876e-05,43321.0,43317.0,0.059197]
[1642264307099,0.00056301,43321.0,43317.0,0.059197]
[1642264307698,0.00056301,43321.0,43317.0,0.39391846]
[1642264307900,0.00056301,43321.0,43317.0,0.49391846]
[1642264308099,6.876e-05,43321.0,43320.0,1.09400364]
[1642264308300,0.00100301,43321.0,43320.0,1.14030364]
[1642264309299,6.876e-05,43321.0,43320.0,1.14030364]
[1642264309501,6.876e-05,43321.0,43320.0,0.8963]
[1642264309951,6.876e-05,43321.0,43320.0,0.967073]
[1642264310554,6.876e-05,43321.0,43320.0,1.24736878]
[1642264311856,6.876e-05,43321.0,43320.0,0.0463]
[1642264312655,6.876e-05,43321.0,43320.0,0.2972428]
[1642264313255,6.876e-05,43321.0,43320.0,0.0463]
[1642264314298,6.876e-05,43321.0,43320.0,0.8463]
[1642264314700,6.876e-05,43321.0,43320.0,0.9463]
[1642264314901,6.876e-05,43321.0,43320.0,0.0463]
[1642264315099,6.876e-05,43321.0,43320.0,0.0016]
[1642264317302,6.876e-05,43321.0,43320.0,0.4516]
[1642264317948,6.876e-05,43321.0,43320.0,0.509284]
[1642264318148,6.876e-05,43321.0,43320.0,0.609284]
[1642264318447,6.876e-05,43321.0,43320.0,1.909284]
[1642264318649,6.876e-05,43321.0,43320.0,0.609284]
[1642264320050,6.876e-05,43321.0,43320.0,0.74897085]
[1642264320251,6.876e-05,43321.0,43320.0,1.164584]
[1642264320654,6.876e-05,43321.0,43320.0,0.610884]
[1642264321304,6.876e-05,43321.0,43320.0,0.79602757]
[1642264321701,6.876e-05,43321.0,43320.0,0.610884]
[1642264322700,6.876e-05,43321.0,43320.0,0.38619531]
[1642264322902,6.876e-05,43321.0,43320.0,0.203984]
[1642264323102,6.876e-05,43321.0,43320.0,0.103984]
[1642264323704,6.876e-05,43321.0,43320.0,0.28670528]
[1642264325155,6.876e-05,43321.0,43320.0,0.89200528]
[1642264325553,6.876e-05,43321.0,43320.0,2.20820038]
[1642264330120,6.876e-05,43321.0,43320.0,2.16350038]
[1642264330922,6.876e-05,43321.0,43320.0,2.22118438]
[1642264332749,6.876e-05,43321.0,43320.0,2.12118438]
[1642264333349,0.28520236,43329.0,43320.0,1.292268]
[1642264333548,0.00086248,43323.0,43320.0,1.292268]
[1642264334150,0.00086248,43323.0,43320.0,0.172268]
[1642264334557,0.00012033,43328.0,43320.0,0.172268]
[1642264334751,0.00086248,43324.0,43320.0,0.172268]
[1642264335152,0.00086248,43324.0,43320.0,0.027468]
[1642264335755,0.00010314,43327.0,43320.0,0.027468]
[1642264335954,0.00086272,43324.0,43321.0,0.0463]
[1642264336201,0.00086272,43324.0,43321.0,1.2663]
[1642264336403,0.00086272,43324.0,43321.0,0.22528849]
[1642264336702,0.00086272,43324.0,43321.0,0.1463]
[1642264336902,8.595e-05,43326.0,43321.0,1.3663]
[1642264337106,0.00086271,43325.0,43321.0,1.3663]
[1642264337401,0.00093147,43325.0,43321.0,1.3663]
[1642264337802,0.00093147,43325.0,43321.0,0.1463]
[1642264338006,6.876e-05,43325.0,43321.0,0.0463]
[1642264338303,0.0009314,43325.0,43321.0,0.0463]
[1642264339104,0.0009314,43325.0,43321.0,1.2663]
[1642264339303,6.876e-05,43325.0,43321.0,1.3663]
[1642264339507,0.0009314,43325.0,43321.0,1.3663]
[1642264340166,0.0009314,43325.0,43321.0,1.49443977]
[1642264340765,0.0009314,43325.0,43322.0,1.22]
[1642264340967,0.0009314,43325.0,43324.0,2.557679]
[1642264341172,0.00345,43332.0,43326.0,1.22]
[1642264341371,0.00345,43332.0,43330.0,0.579]
[1642264341668,0.00010314,43331.0,43330.0,0.579]
[1642264341869,0.00010314,43331.0,43330.0,1.799]
[1642264342068,0.5646,43339.0,43330.0,2.18150968]
[1642264342069,0.27382776,43338.0,43330.0,2.18150968]
[1642264342272,0.27382776,43338.0,43334.0,0.40370223]
[1642264342469,0.00020628,43337.0,43335.0,0.0463]
[1642264342668,0.00020628,43337.0,43335.0,0.103972]
[1642264342870,0.00018909,43336.0,43335.0,0.103972]
[1642264344711,0.00018909,43336.0,43335.0,0.0463]
[1642264345111,0.00018909,43336.0,43335.0,0.0016]
[1642264346911,0.00018909,43336.0,43335.0,0.8016]
[1642264348156,0.00018909,43336.0,43335.0,0.2316]
[1642264350159,0.00018909,43336.0,43335.0,0.187]
[1642264350359,0.00018909,43336.0,43335.0,0.3761572]
[1642264350562,0.00018909,43336.0,43335.0,1.027632]
[1642264350955,0.00018909,43336.0,43335.0,3.5885924]
[1642264351207,0.00018909,43336.0,43335.0,4.8085924]
[1642264351408,0.00018909,43336.0,43335.0,4.42820111]
[1642264351607,0.00018909,43336.0,43335.0,4.32820111]
[1642264351909,0.00018909,43336.0,43335.0,4.42820111]
[1642264352109,0.00018909,43336.0,43335.0,4.8085924]
[1642264353309,0.00018909,43336.0,43335.0,2.247632]
[1642264355149,0.00018909,43336.0,43335.0,2.202832]
[1642264355951,0.00018909,43336.0,43335.0,1.9875]
[1642264357351,0.00018909,43336.0,43335.0,2.045166]
[1642264357553,0.00018909,43336.0,43335.0,2.145166]
[1642264357957,0.00018909,43336.0,43335.0,0.925166]
[1642264358552,0.00018909,43336.0,43335.0,2.145166]
[1642264360099,0.00018909,43336.0,43335.0,0.880566]
[1642264360900,0.00018909,43336.0,43335.0,2.530566]
[1642264361702,0.00018909,43336.0,43335.0,2.100566]
[1642264362002,0.00018909,43336.0,43335.0,0.880566]
[1642264362204,0.00018909,43336.0,43335.0,0.8229]
[1642264362450,0.00018909,43336.0,43335.0,0.880566]
[1642264362650,0.00018909,43336.0,43335.0,2.100566]
[1642264362954,0.00018909,43336.0,43335.0,2.600566]
[1642264365253,0.00018909,43336.0,43335.0,2.555966]
[1642264366051,0.00018909,43336.0,43335.0,2.055966]
[1642264366705,0.00018909,43336.0,43335.0,2.505966]
[1642264366907,0.00018909,43336.0,43335.0,2.055966]
[1642264368811,0.00018909,43336.0,43335.0,2.502966]
[1642264369812,0.00086192,43338.0,43337.0,2.72]
[1642264370060,0.00086192,43338.0,43337.0,1.3663]
[1642264370259,0.00086192,43338.0,43337.0,1.3217]
[1642264370461,0.00129246,43350.0,43337.0,1.3217]
[1642264370660,0.0008619,43340.0,43337.0,1.3217]
[1642264370865,0.0008619,43340.0,43339.0,2.283057]
[1642264371062,0.0008619,43340.0,43339.0,1.379357]
[1642264371264,0.00093066,43340.0,43339.0,1.379357]
[1642264371663,6.876e-05,43340.0,43339.0,1.379357]
[1642264372663,6.876e-05,43340.0,43339.0,1.779357]
[1642264374100,6.876e-05,43340.0,43339.0,1.379357]
[1642264375300,6.876e-05,43340.0,43339.0,1.334757]
[1642264377657,6.876e-05,43340.0,43339.0,2.134757]
[1642264378761,6.876e-05,43340.0,43339.0,2.354757]
[1642264379656,6.876e-05,43340.0,43339.0,1.554757]
[1642264380058,0.29206208,43353.0,43341.0,1.188452]
[1642264380258,0.2905091,43353.0,43345.0,0.11530741]
[1642264380466,0.00012033,43347.0,43345.0,0.16160741]
[1642264380859,0.00010314,43346.0,43345.0,0.16160741]
[1642264381059,0.00010314,43346.0,43345.0,0.103954]
[1642264381317,0.00010314,43346.0,43345.0,0.0463]
[1642264383617,0.00010314,43346.0,43345.0,0.6463]
[1642264384215,0.00010314,43346.0,43345.0,0.0463]
[1642264384817,0.28240437,43346.0,43345.0,0.0463]
[1642264385068,0.28240437,43346.0,43343.0,0.00066208]
[1642264385264,0.28240437,43346.0,43343.0,0.01352208]
[1642264385465,0.28240437,43346.0,43341.0,1.22]
[1642264385466,8.595e-05,43345.0,43341.0,1.22]
[1642264385665,8.595e-05,43345.0,43341.0,1.32]
[1642264385863,6.876e-05,43344.0,43341.0,1.32]
[1642264386163,8.595e-05,43345.0,43341.0,1.32]
[1642264386564,6.876e-05,43344.0,43341.0,1.32]
[1642264386964,8.595e-05,43345.0,43341.0,1.32]
[1642264387364,6.876e-05,43344.0,43341.0,1.32]
[1642264387865,8.595e-05,43345.0,43341.0,1.32]
[1642264388266,6.876e-05,43344.0,43341.0,1.32]
[1642264389115,6.876e-05,43344.0,43342.0,0.11531659]
[1642264390312,6.876e-05,43344.0,43342.0,0.07051659]
[1642264392559,6.876e-05,43344.0,43341.0,1.32087049]
[1642264393359,6.876e-05,43344.0,43341.0,1.32]
[1642264393563,6.876e-05,43344.0,43340.0,0.00087051]
[1642264394561,0.24300856,43341.0,43339.0,0.81153265]
[1642264394761,0.24300856,43341.0,43340.0,0.00087052]
[1642264395359,0.24300856,43341.0,43339.0,0.17617052]
[1642264395861,0.1623844,43340.0,43339.0,0.17617052]
[1642264397111,0.16289997,43340.0,43339.0,0.17617052]
[1642264397314,0.24300856,43341.0,43339.0,0.27617052]
[1642264399116,6.876e-05,43344.0,43339.0,0.27617052]
[1642264399816,0.12784993,43349.0,43339.0,0.27617052]
[1642264400063,0.12784993,43349.0,43340.0,6.876e-05]
[1642264400265,0.29465126,43347.0,43340.0,6.876e-05]
[1642264401864,0.29558522,43347.0,43340.0,0.00093987]
[1642264402965,0.29465126,43347.0,43340.0,6.876e-05]
[1642264403165,0.29465126,43347.0,43340.0,0.00093987]
[1642264403166,0.29558522,43347.0,43340.0,0.00093987]
[1642264403366,0.29558522,43347.0,43340.0,0.05860387]
[1642264403566,0.29558522,43347.0,43340.0,0.00093987]
[1642264404006,0.29465126,43347.0,43340.0,6.876e-05]
[1642264404411,0.29558522,43347.0,43340.0,0.00093987]
[1642264405209,0.29465126,43347.0,43339.0,0.35546876]
[1642264405412,0.29558522,43347.0,43340.0,0.00087111]
[1642264405611,0.00010314,43346.0,43340.0,0.00087111]
[1642264406011,8.595e-05,43345.0,43340.0,0.00087111]
[1642264406413,6.876e-05,43344.0,43339.0,0.35546876]
[1642264406613,6.876e-05,43344.0,43340.0,0.00087112]
[1642264406813,0.00010314,43346.0,43340.0,0.00087112]
[1642264407217,8.595e-05,43345.0,43340.0,0.00087112]
[1642264407654,6.876e-05,43344.0,43339.0,0.84700141]
[1642264407858,6.876e-05,43344.0,43340.0,0.00087112]
[1642264408055,0.00010314,43346.0,43340.0,0.00087112]
[1642264408456,8.595e-05,43345.0,43340.0,0.00087112]
[1642264408754,6.876e-05,43344.0,43340.0,0.00087112]
[1642264408955,6.876e-05,43344.0,43339.0,0.25546876]
[1642264409255,0.00010314,43346.0,43340.0,0.00087112]
[1642264409456,0.13049164,43346.0,43340.0,0.00087112]
[1642264409655,8.595e-05,43345.0,43340.0,0.00087112]
[1642264410053,6.876e-05,43344.0,43339.0,0.25546876]
[1642264410256,6.876e-05,43344.0,43339.0,0.21143988]
[1642264410454,0.28962461,43344.0,43339.0,0.21143988]
[1642264410756,0.4913159,43343.0,43339.0,0.21143988]
[1642264412112,0.33814992,43340.0,43339.0,0.21143988]
[1642264412515,0.4913159,43343.0,43339.0,0.21143988]
[1642264413513,0.25105093,43342.0,43339.0,0.21143988]
[1642264415360,0.25105093,43342.0,43339.0,0.16683988]
[1642264416060,0.25045859,43342.0,43339.0,0.16683988]
[1642264416865,0.25172271,43342.0,43339.0,0.16683988]
[1642264417264,0.33666271,43342.0,43339.0,0.16683988]
[1642264418363,0.39434871,43342.0,43339.0,0.16683988]
[1642264419013,0.25172271,43342.0,43339.0,0.16683988]
[1642264419210,0.00126412,43342.0,43339.0,0.16683988]
[1642264420413,0.29622018,43341.0,43339.0,0.12213988]
[1642264420613,0.15893474,43340.0,43339.0,0.12213988]
[1642264421014,0.29622018,43341.0,43339.0,0.12213988]
[1642264421613,0.16070674,43340.0,43339.0,0.12213988]
[1642264422114,0.29622018,43341.0,43339.0,0.12213988]
[1642264422762,0.00126412,43342.0,43339.0,0.12213988]
[1642264422959,0.18441666,43344.0,43339.0,0.12213988]
[1642264423758,0.24464558,43342.0,43339.0,0.22213988]
[1642264424159,0.24464558,43342.0,43339.0,0.32213988]
[1642264425460,0.24464558,43342.0,43339.0,0.27733988]
[1642264430464,0.24464558,43342.0,43339.0,0.23253988]
[1642264433061,6.876e-05,43344.0,43339.0,0.23253988]
[1642264434317,0.29142809,43343.0,43339.0,0.23253988]
[1642264435417,6.876e-05,43344.0,43339.0,0.18793988]
[1642264435624,6.876e-05,43344.0,43340.0,0.16713348]
[1642264435817,6.876e-05,43344.0,43339.0,0.18793988]
[1642264436020,6.876e-05,43344.0,43340.0,0.16889482]
[1642264436220,6.876e-05,43344.0,43341.0,0.0463]
[1642264436619,6.876e-05,43344.0,43343.0,1.79719181]
[1642264436818,6.876e-05,43344.0,43343.0,1.84471726]
[1642264437462,6.876e-05,43344.0,43343.0,1.94471726]
[1642264437863,6.876e-05,43344.0,43343.0,2.00237426]
[1642264438562,0.00082824,43346.0,43343.0,0.20518245]
[1642264438764,0.00082824,43346.0,43343.0,0.14752545]
[1642264438963,0.2924537,43352.0,43343.0,0.04752545]
[1642264439363,0.28757403,43352.0,43343.0,0.04752545]
[1642264439564,0.28757403,43352.0,43345.0,0.31287395]
[1642264439763,0.28757403,43352.0,43346.0,0.0463]
[1642264440163,0.28757403,43352.0,43347.0,6.876e-05]
[1642264440365,0.00093394,43351.0,43347.0,6.876e-05]
[1642264440563,0.00093394,43351.0,43346.0,0.00096876]
[1642264441413,0.28757403,43352.0,43346.0,0.00096876]
[1642264441612,0.00093394,43351.0,43346.0,0.00096876]
[1642264441814,0.0010027,43351.0,43346.0,0.00096876]
[1642264442512,6.876e-05,43351.0,43346.0,0.00096876]
[1642264442711,0.0010027,43351.0,43346.0,0.00096876]
[1642264443715,6.876e-05,43351.0,43346.0,0.00096876]
[1642264443913,0.0010027,43351.0,43346.0,0.00096876]
[1642264444615,0.0010027,43351.0,43346.0,0.11626776]
[1642264445566,0.0010027,43351.0,43346.0,0.07166776]
[1642264446168,6.876e-05,43351.0,43346.0,0.07166776]
[1642264446470,0.0010027,43351.0,43346.0,0.07166776]
[1642264447071,0.0010027,43351.0,43346.0,0.11796776]
[1642264447270,6.876e-05,43351.0,43346.0,0.11796776]
[1642264447470,0.0010027,43351.0,43346.0,0.11796776]
[1642264447671,0.0010027,43351.0,43346.0,0.17561913]
[1642264447871,0.0010027,43351.0,43346.0,0.11796776]
[1642264448072,0.0010027,43351.0,43346.0,0.0463]
[1642264448576,6.876e-05,43351.0,43346.0,0.0463]
[1642264448810,0.0010027,43351.0,43346.0,0.0463]
[1642264449810,6.876e-05,43351.0,43346.0,0.0463]
[1642264450012,0.0010027,43351.0,43346.0,0.0463]
[1642264450310,0.0010027,43351.0,43346.0,0.10395185]
[1642264450511,0.0010027,43351.0,43347.0,0.012949]
[1642264450710,0.0010027,43351.0,43348.0,0.0463]
[1642264450913,6.876e-05,43351.0,43348.0,0.0463]
[1642264451911,0.28497956,43349.0,43348.0,0.0463]
[1642264452112,0.28497956,43349.0,43342.0,0.3564]
[1642264452312,0.28497956,43349.0,43342.0,0.0463]
[1642264452563,0.27997956,43349.0,43343.0,6.876e-05]
[1642264453462,0.00093397,43348.0,43343.0,6.876e-05]
[1642264454466,0.27997956,43349.0,43343.0,6.876e-05]
[1642264454664,0.00093397,43348.0,43343.0,6.876e-05]
[1642264455664,0.27997956,43349.0,43342.0,0.00166876]
[1642264455864,6.876e-05,43347.0,43342.0,0.00166876]
[1642264456065,0.45796212,43343.0,43342.0,0.00166876]
[1642264456321,0.45796212,43343.0,43340.0,0.59153265]
[1642264456917,0.45796212,43343.0,43339.0,0.77947253]
[1642264457115,0.45796212,43343.0,43339.0,0.78033632]
[1642264457518,0.00093397,43346.0,43339.0,0.78033632]
[1642264457719,0.00093397,43346.0,43339.0,0.18880367]
[1642264458218,0.00093398,43346.0,43339.0,0.18880366]
[1642264458618,0.3010667,43342.0,43339.0,0.18880366]
[1642264459220,0.33399171,43341.0,43339.0,0.18880366]
[1642264459423,0.33399171,43341.0,43339.0,0.18793988]
[1642264460666,0.33399171,43341.0,43339.0,0.14323988]
[1642264461472,0.1547043,43340.0,43339.0,0.14323988]
[1642264461867,0.1547043,43340.0,43339.0,0.24330864]
[1642264462265,0.33399171,43341.0,43339.0,0.34330864]
[1642264462468,2.04189824,43346.0,43339.0,0.34330864]
[1642264462469,0.00093395,43346.0,43339.0,0.34330864]
[1642264462666,0.00093395,43346.0,43342.0,0.00121506]
[1642264462867,0.59257977,43352.0,43342.0,0.00121506]
[1642264463065,0.00093399,43346.0,43342.0,0.00121506]
[1642264463267,0.00093399,43346.0,43342.0,0.30064145]
[1642264463713,0.00093399,43346.0,43342.0,0.00121506]
[1642264464116,0.41849226,43347.0,43342.0,0.00121506]
[1642264464319,0.00093399,43346.0,43342.0,0.00121506]
[1642264465115,0.00093399,43346.0,43339.0,0.44417241]
[1642264465318,0.41849226,43347.0,43339.0,0.44330864]
[1642264465516,0.00093398,43346.0,43339.0,0.39947242]
[1642264465916,0.00093398,43346.0,43339.0,0.29947242]
[1642264466115,0.00093398,43346.0,43339.0,0.39947242]
[1642264466516,0.41849226,43347.0,43339.0,0.39860864]
[1642264466721,0.00093398,43346.0,43339.0,0.39947242]
[1642264467118,0.00093398,43346.0,43340.0,0.057664]
[1642264467877,0.00093399,43346.0,43340.0,0.057664]
[1642264468874,6.876e-05,43347.0,43340.0,0.057664]
[1642264469073,6.876e-05,43347.0,43341.0,0.0463]
[1642264469277,0.00093399,43346.0,43341.0,0.0463]
[1642264470075,0.38902037,43347.0,43341.0,0.03538]
[1642264470274,0.00093399,43346.0,43341.0,0.03538]
[1642264470677,0.00093399,43346.0,43340.0,0.80478255]
[1642264470875,0.00093399,43346.0,43341.0,0.0463]
[1642264471076,0.00093399,43346.0,43342.0,0.05765738]
[1642264471316,6.876e-05,43347.0,43344.0,2.08257757]
[1642264471514,0.00093399,43346.0,43345.0,1.553957]
[1642264471715,0.00093399,43346.0,43345.0,1.81657014]
[1642264472516,6.876e-05,43347.0,43345.0,1.81657014]
[1642264472916,6.876e-05,43347.0,43346.0,1.06500324]
[1642264473215,6.876e-05,43347.0,43346.0,0.9]
[1642264474421,6.876e-05,43347.0,43346.0,0.89525029]
[1642264474820,6.876e-05,43347.0,43346.0,1.01055029]
[1642264475465,6.876e-05,43347.0,43346.0,2.11055029]
[1642264475665,6.876e-05,43347.0,43346.0,2.06555029]
[1642264476670,6.876e-05,43347.0,43346.0,0.96555029]
[1642264477468,6.876e-05,43347.0,43346.0,1.66555029]
[1642264477867,6.876e-05,43347.0,43346.0,1.06555029]
[1642264478468,6.876e-05,43347.0,43346.0,1.51555029]
[1642264478713,6.876e-05,43347.0,43346.0,1.06555029]
[1642264480614,6.876e-05,43347.0,43346.0,1.02075029]
[1642264481415,6.876e-05,43347.0,43346.0,2.02075029]
[1642264482562,6.876e-05,43347.0,43346.0,1.06705029]
[1642264483560,6.876e-05,43347.0,43346.0,0.2616]
[1642264483964,6.876e-05,43347.0,43346.0,0.0463]
[1642264485362,6.876e-05,43347.0,43346.0,0.8963]
[1642264485562,6.876e-05,43347.0,43346.0,0.9963]
[1642264485762,6.876e-05,43347.0,43346.0,0.9516]
[1642264486206,6.876e-05,43347.0,43346.0,0.1016]
[1642264486711,6.876e-05,43347.0,43346.0,0.0016]
[1642264487908,6.876e-05,43347.0,43343.0,0.7491897]
[1642264487909,6.876e-05,43347.0,43343.0,0.69153265]
[1642264488110,6.876e-05,43347.0,43344.0,0.59153265]
[1642264488409,0.00100274,43347.0,43344.0,0.59153265]
[1642264488810,0.2845916,43347.0,43342.0,0.59153265]
[1642264489010,0.2967381,43345.0,43342.0,0.59153265]
[1642264489707,0.2967381,43345.0,43340.0,0.69102156]
[1642264489708,0.2967381,43345.0,43341.0,0.59153265]
[1642264490263,0.2967381,43345.0,43341.0,0.64919565]
[1642264490663,0.2967381,43345.0,43341.0,0.60439565]
[1642264490866,0.2967381,43345.0,43339.0,0.84620507]
[1642264491664,0.2967381,43345.0,43339.0,0.84534129]
[1642264491864,0.2967381,43345.0,43339.0,0.84620508]
[1642264492066,0.2967381,43345.0,43339.0,0.29947243]
[1642264492667,0.00093398,43346.0,43339.0,0.29947243]
[1642264492868,0.28365762,43347.0,43339.0,0.29860864]
[1642264493069,0.00093398,43346.0,43339.0,0.29947242]
[1642264493469,0.27916149,43347.0,43340.0,1.45]
[1642264493714,0.53225085,43347.0,43340.0,0.10012033]
[1642264493915,0.53225085,43347.0,43341.0,0.00010314]
[1642264495414,0.00120118,43353.0,43341.0,0.05776237]
[1642264495614,0.00093394,43348.0,43341.0,0.05863509]
[1642264495815,0.00093394,43348.0,43343.0,0.057657]
[1642264496515,8.595e-05,43352.0,43344.0,0.34183544]
[1642264496716,0.00068985,43348.0,43345.0,0.05765255]
[1642264496916,0.00068985,43348.0,43346.0,0.057653]
[1642264497117,0.00068985,43348.0,43346.0,0.05775614]
[1642264497315,0.00068985,43348.0,43347.0,8.595e-05]
[1642264497773,0.32739482,43350.0,43347.0,8.595e-05]
[1642264497970,0.00068988,43350.0,43347.0,8.595e-05]
[1642264498968,0.33057155,43354.0,43347.0,8.595e-05]
[1642264499168,0.00068988,43351.0,43348.0,0.057653]
[1642264499368,0.00068988,43351.0,43347.0,8.595e-05]
[1642264499570,0.33558239,43352.0,43347.0,8.595e-05]
[1642264500468,0.33558239,43352.0,43346.0,0.00010314]
[1642264500669,0.33014239,43352.0,43345.0,0.59310885]
[1642264500866,0.32470239,43352.0,43345.0,0.59310885]
[1642264501068,0.32368834,43352.0,43346.0,0.057656]
[1642264501311,0.32368834,43352.0,43346.0,0.05774195]
[1642264501511,0.32368834,43352.0,43346.0,8.595e-05]
[1642264502915,0.32368834,43352.0,43343.0,0.00013752]
[1642264504012,0.32368834,43352.0,43345.0,0.00088854]
[1642264505064,0.32368834,43352.0,43345.0,0.00088855]
[1642264505865,0.32368834,43352.0,43344.0,0.54803178]
[1642264506065,0.00013752,43351.0,43344.0,0.54803178]
[1642264506365,0.00012033,43350.0,43342.0,0.00124393]
[1642264506568,0.00012033,43350.0,43342.0,0.10124393]
[1642264506865,0.00010314,43349.0,43342.0,0.10124393]
[1642264507067,0.00010314,43349.0,43342.0,0.26295097]
[1642264507265,8.595e-05,43348.0,43342.0,0.26295097]
[1642264507665,6.876e-05,43347.0,43342.0,0.16295097]
[1642264508069,6.876e-05,43347.0,43343.0,1.34108523]
[1642264508566,6.876e-05,43347.0,43343.0,0.1]
[1642264508832,6.876e-05,43347.0,43343.0,0.10087076]
[1642264509234,6.876e-05,43347.0,43343.0,0.11618076]
[1642264509433,6.876e-05,43347.0,43343.0,0.00087076]
[1642264509833,6.876e-05,43347.0,43342.0,0.84992749]
[1642264510036,6.876e-05,43347.0,43343.0,0.00087076]
[1642264510235,6.876e-05,43347.0,43343.0,0.69189232]
[1642264510642,6.876e-05,43347.0,43343.0,0.79189232]
[1642264510838,6.876e-05,43347.0,43343.0,0.1]
[1642264511837,6.876e-05,43347.0,43342.0,0.05890593]
[1642264512238,6.876e-05,43347.0,43342.0,0.00124393]
[1642264512487,0.00055403,43347.0,43346.0,0.00126377]